[Event "ITT 1st Parada Jamundi 2022"]
[Site "Jamundi Valle"]
[Date "2022.12.10"]
[Round "8.30"]
[White "Pena Ramirez, Jatniel"]
[Black "Rendon, Isabela"]
[Result "0-1"]
[ECO "C54"]
[WhiteElo "1201"]
[BlackElo "1139"]
[Annotator "NA RC COMBH"]
[PlyCount "162"]
[EventDate "2022.12.05"]
[EventType "swiss"]
[EventCountry "COL"]
[SourceTitle "playchess.com"]
[Source "ChessBase"]
[SourceQuality "1"]
[TimeControl "5400+30"]

1. e4 {[%emt 0:01:25]} e5 {[%emt 0:01:19]} 2. Nf3 {[%emt 0:00:06]} Nc6 {[%emt 0:00:10]} 3. Bc4 {[%emt 0:00:06]} Bc5 {[%emt 0:00:09]} 4. c3 {[%emt 0:00:08]} Nf6 {[%emt 0:00:09]} 5. d3 {[%emt 0:00:08]} d6 {[%emt 0:00:45]} 6. Bb3 {[%emt 0:00:05]} a6 {[%emt 0:00:11]} 7. O-O {[%emt 0:00:10]} Ba7 {[%emt 0:00:32]} 8. Nbd2 {[%emt 0:00:19]} Be6 {[%emt 0:00:12]} 9. Re1 {[%emt 0:00:10]} Ne7 {[%emt 0:00:33]} 10. Nf1 {[%emt 0:00:11]} Ng6 {[%emt 0:00:06]} 11. Ng3 {[%emt 0:00:17]} O-O {[%emt 0:00:09]} 12. Be3 {[%emt 0:00:23]} Qd7 {[%emt 0:01:21]} 13. Qd2 {[%emt 0:01:16]} Rfe8 {[%emt 0:00:49]} 14. h3 {[%emt 0:01:08]} d5 {[%emt 0:01:20]} 15. Qe2 {[%emt 0:01:06]} d4 {[%emt 0:00:38]} 16. cxd4 {[%emt 0:00:42]} exd4 {[%emt 0:00:32]} 17. Bg5 {[%emt 0:00:51]} Bxb3 {[%emt 0:01:27]} 18. Bxf6 {[%emt 0:01:12]} Ba4 {[%emt 0:02:55]} 19. Bxg7 {[%emt 0:00:35]} Kxg7 {[%emt 0:00:12]} 20. Nf5+ {[%emt 0:01:28]} Qxf5 {[%emt 0:01:11]} 21. exf5 {[%emt 0:00:45]} Rxe2 {[%emt 0:00:13]} 22. Rxe2 {[%emt 0:00:33]} Nf4 {[%emt 0:00:20]} 23. Re4 {[%emt 0:01:16]} Nxd3 {[%emt 0:01:39]} 24. b3 {[%emt 0:01:51]} Bc6 {[%emt 0:01:53]} 25. Rg4+ {[%emt 0:00:13]} Kf8 {[%emt 0:00:59]} 26. Nxd4 {[%emt 0:01:29]} Rd8 {[%emt 0:05:16]} 27. Nxc6 {[%emt 0:01:38]} bxc6 {[%emt 0:02:14]} 28. Rd1 {[%emt 0:02:05]} Rd5 {[%emt 0:01:29]} 29. Kf1 {[%emt 0:01:46]} Nxf2 {[%emt 0:01:18]} 30. Rxd5 {[%emt 0:00:38]} cxd5 {[%emt 0:00:17]} 31. Ra4 {[%emt 0:00:25]} Ne4 {[%emt 0:02:24]} 32. Rxa6 {[%emt 0:00:56]} Ng3+ {[%emt 0:00:23]} 33. Ke1 {[%emt 0:00:24]} Bb6 {[%emt 0:00:35]} 34. f6 {[%emt 0:00:15]} Ke8 {[%emt 0:00:50]} 35. a4 {[%emt 0:00:35]} Kd7 {[%emt 0:05:34]} 36. Ra8 {[%emt 0:06:14]} Bc5 {[%emt 0:02:32]} 37. Rh8 {[%emt 0:01:34]} Bb4+ {[%emt 0:00:56]} 38. Kd1 {[%emt 0:00:33]} d4 {[%emt 0:02:54]} 39. Rxh7 {[%emt 0:00:39]} Ke6 {[%emt 0:00:10]} 40. Rh4 {[%emt 0:01:20]} Nf5 {[%emt 0:00:23]} 41. Rh8 {[%emt 0:01:44]} d3 {[%emt 0:02:27]} 42. Re8+ {[%emt 0:01:10]} Kxf6 {[%emt 0:01:03]} 43. g4 {[%emt 0:00:34]} Nd6 {[%emt 0:00:23]} 44. Re3 {[%emt 0:02:06]} d2 {[%emt 0:00:07]} 45. h4 {[%emt 0:04:58]} c5 {[%emt 0:01:40]} 46. Kc2 {[%emt 0:01:40]} c4 {[%emt 0:01:02]} 47. bxc4 {[%emt 0:00:53]} Nxc4 {[%emt 0:01:33]} 48. Re4 {[%emt 0:00:17]} Nb2 {[%emt 0:01:06]} 49. Rxb4 {[%emt 0:02:06]} d1=Q+ {[%emt 0:00:19]} 50. Kxb2 {[%emt 0:00:31]} Qd2+ {[%emt 0:00:25]} 51. Kb3 {[%emt 0:00:39]} Qd3+ {[%emt 0:00:45]} 52. Kb2 {[%emt 0:00:45]} Qe2+ {[%emt 0:01:06]} 53. Kb3 {[%emt 0:00:45]} Qe3+ {[%emt 0:00:36]} 54. Kc4 {[%emt 0:00:35]} Qe2+ {[%emt 0:01:39]} 55. Kb3 {[%emt 0:00:25]} Qf3+ {[%emt 0:00:16]} 56. Kc4 {[%emt 0:03:35]} Qxg4+ {[%emt 0:00:19]} 57. Kb5 {[%emt 0:00:28]} Qe2+ {[%emt 0:01:34]} 58. Ka5 {[%emt 0:00:31]} Kg7 {[%emt 0:01:22]} 59. Rb5 {[%emt 0:02:05]} Qe1+ {[%emt 0:00:25]} 60. Rb4 {[%emt 0:00:16]} f5 {[%emt 0:02:05]} 61. Kb5 {[%emt 0:03:01]} Qe2+ {[%emt 0:02:17]} 62. Kb6 {[%emt 0:05:06]} Qe3+ {[%emt 0:00:39]} 63. Ka6 {[%emt 0:01:10]} Qe6+ {[%emt 0:01:24]} 64. Ka7 {[%emt 0:01:39]} Qc8 {[%emt 0:02:24]} 65. h5 {[%emt 0:03:16]} Qc5+ {[%emt 0:00:16]} 66. Rb6 {[%emt 0:00:09]} f4 {[%emt 0:00:19]} 67. h6+ {[%emt 0:00:36]} Kh7 {[%emt 0:00:13]} 68. Kb7 {[%emt 0:01:08]} f3 {[%emt 0:01:28]} 69. Rc6 {[%emt 0:01:43]} Qxc6+ {[%emt 0:00:24]} 70. Kxc6 {[%emt 0:00:07]} f2 {[%emt 0:00:06]} 71. a5 {[%emt 0:00:12]} f1=Q {[%emt 0:00:08]} 72. Kb6 {[%emt 0:00:14]} Qf6+ {[%emt 0:00:24]} 73. Kb7 {[%emt 0:00:08]} Qe7+ {[%emt 0:00:30]} 74. Kb6 {[%emt 0:00:25]} Qd8+ {[%emt 0:00:10]} 75. Ka6 {[%emt 0:00:12]} Qa8+ {[%emt 0:00:11]} 76. Kb6 {[%emt 0:00:09]} Kxh6 {[%emt 0:00:42]} 77. a6 {[%emt 0:00:06]} Kg6 {[%emt 0:00:07]} 78. a7 {[%emt 0:00:08]} Kf6 {[%emt 0:00:06]} 79. Ka6 {[%emt 0:00:12]} Ke6 {[%emt 0:00:06]} 80. Kb6 {[%emt 0:00:08]} Kd6 {[%emt 0:00:06]} 81. Ka6 {[%emt 0:00:09]} Kc6 {[%emt 0:00:05]} 0-1

[Event "ITT 1st Parada Jamundi 2022"]
[Site "Jamundi Valle"]
[Date "2022.12.10"]
[Round "9.1"]
[White "Cori Quispe, Kevin Joel"]
[Black "Henriquez Villagra, Cristobal"]
[Result "1/2-1/2"]
[WhiteElo "2469"]
[BlackElo "2587"]
[Annotator "TA"]
[PlyCount "18"]
[EventDate "2022.12.05"]
[EventType "swiss"]
[EventCountry "COL"]
[SourceTitle "playchess.com"]
[Source "ChessBase"]
[SourceQuality "1"]
[TimeControl "5400+30"]

{[%evp 17,18,0,24]} 1. e4 {[%emt 0:05:51]} c5 {[%emt 0:00:23]} 2. Nf3 {[%emt 0:01:54]} d6 {[%emt 0:00:06]} 3. d4 {[%emt 0:00:14]} cxd4 {[%emt 0:00:06]} 4. Nxd4 {[%emt 0:00:05]} Nf6 {[%emt 0:00:04]} 5. Nc3 {[%emt 0:00:19]} a6 {[%emt 0:00:22] [#]} 6. Be3 $146 {[%emt 0:00:35]} ({Predecessor:} 6. h3 e6 7. g4 Nfd7 8. g5 b5 9. h4 Bb7 10. Bg2 Be7 11. Be3 Ne5 12. f4 Nc4 13. Bc1 Nc6 14. b3 Qa5 15. Rh3 Na3 16. Nxc6 Bxc6 {0-1 (30) Gukesh,D (2725)-So,W (2760) Kolkata 2022}) 6... Ng4 {[%emt 0:00:20]} 7. Bc1 {[%emt 0:00:23]} Nf6 {[%emt 0:00:12]} 8. Be3 {[%emt 0:00:26]} Ng4 {[%emt 0:00:05] 8...Be6 is setting a new trend.} 9. Bc1 {[%emt 0:00:23]} Nf6 {[%emt 0:00:04]} 1/2-1/2

[Event "ITT 1st Parada Jamundi 2022"]
[Site "Jamundi Valle"]
[Date "2022.12.10"]
[Round "9.2"]
[White "Rios, Cristhian Camilo"]
[Black "Cardoso Cardoso, Jose Gabriel"]
[Result "1/2-1/2"]
[ECO "B51"]
[WhiteElo "2456"]
[BlackElo "2483"]
[Annotator "TA"]
[PlyCount "37"]
[EventDate "2022.12.05"]
[EventType "swiss"]
[EventCountry "COL"]
[SourceTitle "playchess.com"]
[Source "ChessBase"]
[SourceQuality "1"]
[TimeControl "5400+30"]

{[%evp 9,37,8,2,0,0,0,37,26,40,28,29,27,40,42,45,37,41,47,43,41,47,39,39,41,216,53,75,0,-5,0]} 1. e4 {[%emt 0:02:53]} c5 {[%emt 0:00:34]} 2. Nf3 {[%emt 0:00:36]} d6 {[%emt 0:00:20]} 3. Bb5+ {[%emt 0:00:52]} Nd7 {[%emt 0:00:20]} 4. d4 {[%emt 0:00:29]} cxd4 {[%emt 0:00:11]} 5. Qxd4 {[%emt 0:00:30]} a6 {[%emt 0:00:10]} 6. Be2 {[%emt 0:00:22] B51: Sicilian: Moscow Variation (3 Bb5+) without 3...Bd7.} Ngf6 {[%emt 0:01:26]} 7. O-O {[%emt 0:00:38]} e6 {[%emt 0:04:33]} 8. Rd1 {[%emt 0:07:23] White is slightly better.} Qc7 {[%emt 0:00:53]} 9. c4 {[%emt 0:00:31]} Be7 {[%emt 0:00:52]} 10. Nc3 {[%emt 0:00:51]} O-O {[%emt 0:07:48]} 11. b3 {[%emt 0:02:59]} Rd8 {[%emt 0:14:02] [#]} 12. Ba3 $146 {[%emt 0:05:10][%cal Ra3d6]} ({Predecessor:} 12. h3 b6 13. Ba3 Nc5 14. b4 Ncd7 15. Rac1 Bb7 16. Bb2 Rac8 17. a3 Qb8 18. Qe3 {½-½ (54) Padurariu,M (2255)-Magold,V (2026) Eforie Nord 2022}) 12... Ne8 {[%emt 0:08:16]} 13. Rac1 {[%emt 0:02:08]} b6 {[%emt 0:00:44]} 14. Qe3 {[%emt 0:01:50]} Bb7 {[%emt 0:57:21]} 15. Nd4 {[%emt 1:10:48]} Rac8 {[%emt 0:00:30]} 16. f4 {[%emt 0:00:30]} Nef6 $2 {[%emt 0:00:30] [#]} ({Better is} 16... h6 $14) 17. Bf3 $2 {[%emt 0:00:30]} (17. e5 $1 $18) 17... Bf8 {[%emt 0:00:30]} 18. f5 {[%emt 0:00:30] White is more active.} (18. g4 $16) 18... e5 $11 {[%emt 0:00:30]} 19. Nc2 {[%emt 0:00:30] Weighted Error Value: White=0.24 (precise) /Black=0.22 (precise)} 1/2-1/2

[Event "ITT 1st Parada Jamundi 2022"]
[Site "Jamundi Valle"]
[Date "2022.12.11"]
[Round "9.3"]
[White "Cruz, Cristhian"]
[Black "Avila Pavas, Santiago"]
[Result "1-0"]
[ECO "A25"]
[WhiteElo "2552"]
[BlackElo "2461"]
[Annotator "TA"]
[PlyCount "95"]
[EventDate "2022.12.05"]
[EventType "swiss"]
[EventCountry "COL"]
[SourceTitle "playchess.com"]
[Source "ChessBase"]
[SourceQuality "1"]
[TimeControl "5400+30"]

{[%evp 9,95,-3,-9,4,15,15,8,0,49,20,27,13,17,25,27,18,14,33,2,8,94,75,77,50,66,49,41,-13,39,56,65,47,23,81,279,312,350,355,394,377,347,297,307,275,275,237,245,219,229,206,253,251,685,508,583,545,579,564,643,633,592,648,660,623,612,556,653,558,671,571,795,752,740,712,1047,1051,2391,2246,5931,5812,4136,3212,5293,1201,29995,29996,29996,29997]} 1. c4 {[%emt 1:31:00] Aseev,Konstantin N} e5 {[%emt 1:31:00]} 2. Nc3 {[%emt 0:00:30]} Nf6 {[%emt 0:00:30]} 3. e3 {[%emt 0:00:30]} Nc6 {[%emt 0:00:30]} 4. a3 {[%emt 0:00:30]} d5 {[%emt 0:00:30]} 5. cxd5 {[%emt 0:00:30]} Nxd5 {[%emt 0:00:30]} 6. Qc2 {[%emt 0:00:30] A25: English Opening vs King's Indian with ...Nc6 but without early d3.} Be6 {[%emt 0:00:30]} 7. Nf3 {[%emt 0:00:30]} Bd6 {[%emt 0:00:30]} 8. Ne4 {[%emt 0:00:30] [#] The position is equal.} f6 $146 {[%emt 0:00:30] Prevents Nfg5.} (8... Nf6 $11) ({Predecessor:} 8... f5 9. Neg5 Bd7 10. Bc4 h6 11. Nf7 Kxf7 12. Bxd5+ Kf8 13. Bxc6 bxc6 14. d4 e4 {½-½ (42) Kortschnoj,V (2635)-Aseev,K (2530) St Petersburg 1997 CBM 059 [Aseev,Konstantin N]}) 9. Bc4 {[%emt 0:00:30]} Qd7 {[%emt 0:00:30]} 10. d3 {[%emt 0:00:30]} Nb6 {[%emt 0:00:30]} 11. Bxe6 {[%emt 0:00:30]} Qxe6 {[%emt 0:00:30]} 12. O-O {[%emt 0:00:30]} f5 {[%emt 0:00:30]} 13. Ned2 {[%emt 0:00:30]} O-O-O {[%emt 0:00:30]} 14. b4 {[%emt 0:00:30] next b5 is good for White.} g5 {[%emt 0:00:30]} (14... a6 $11) 15. Nxg5 $16 {[%emt 0:00:30]} Qg6 {[%emt 0:00:30]} 16. Ngf3 {[%emt 0:00:30] Threatens to win with b5.} (16. b5 $5 {[%cal Rb5c6]}) 16... Rdg8 {[%emt 0:00:30][%csl Gg8][%cal Rg6g2]} 17. g3 {[%emt 0:00:30] aiming for b5.} h5 $1 {[%emt 0:00:30] White must now prevent ...h4.} 18. h4 {[%emt 0:00:30]} (18. Nh4 $14 Qg4 19. Kh1) 18... e4 {[%emt 0:00:30]} (18... Qg4 $1 $11 19. Ng5 e4) 19. Ng5 $1 $14 {[%emt 0:00:30][%cal Rd3e4]} (19. dxe4 Bxg3 $1 20. Kh1 Be5 $17) 19... Be7 $1 {[%emt 0:00:30]} 20. dxe4 {[%emt 0:00:30]} Bxg5 {[%emt 0:00:30]} 21. exf5 {[%emt 0:00:30]} Qg7 {[%emt 0:00:30] [#] This costs Black the game.} (21... Qh6 $16 {was worth a try.}) 22. hxg5 $1 $18 {[%emt 0:00:30]} Qxa1 {[%emt 0:00:30]} (22... h4 23. Bb2) 23. b5 {[%emt 0:00:30]} Nd8 {[%emt 0:00:30]} 24. Bb2 {[%emt 0:00:30]} Qa2 {[%emt 0:00:30]} 25. Ra1 {[%emt 0:00:30]} ({Not} 25. Rc1 Rh7 $18) 25... Qd5 {[%emt 0:00:30]} 26. Bxh8 {[%emt 0:00:30]} Rxh8 {[%emt 0:00:30]} 27. Rc1 $40 {[%emt 0:00:30][%csl Gc1][%cal Rc2c7][%mdl 128] White has strong attack.} c6 {[%emt 0:00:30]} 28. e4 {[%emt 0:00:30]} Qxb5 {[%emt 0:00:30]} 29. g6 {[%emt 0:00:30]} Qe2 {[%emt 0:00:30] [#]} 30. Nc4 $1 {[%emt 0:00:30] Against h4} Qf3 $2 {[%emt 0:00:30]} (30... Qxc4 31. Qxc4 Nxc4 32. Rxc4 Rf8) 31. Nxb6+ {[%emt 0:00:30]} axb6 32. Qc3 {[%emt 0:00:30]} Qxc3 {[%emt 0:01:00]} 33. Rxc3 {[%emt 0:00:30][%mdl 4096] Endgame KRN-KR} c5 {[%emt 0:00:30]} 34. f4 {[%emt 0:00:30]} Rg8 {[%emt 0:00:30]} 35. e5 {[%emt 0:00:30]} Kd7 {[%emt 0:00:30]} 36. Rd3+ {[%emt 0:00:30]} Ke8 {[%emt 0:00:30]} 37. Kh2 {[%emt 0:00:30]} Nc6 {[%emt 0:00:30]} 38. g4 {[%emt 0:00:30]} hxg4 {[%emt 0:00:30]} 39. Kg3 {[%emt 0:00:30]} c4 {[%emt 0:00:30]} 40. Rc3 {[%emt 0:00:30]} Ne7 41. Kxg4 {[%emt 0:00:30]} (41. Rxc4 $2 {perishes.} Nxf5+ 42. Kf2 g3+ 43. Kg1 Kd7 44. e6+ Kxe6 $19) 41... Nd5 42. Rc1 {[%emt 0:00:30]} ({Worse is} 42. Rxc4 Ne3+ 43. Kg5 Nxc4 $11) 42... c3 {[%emt 0:01:30]} 43. Kg5 {[%emt 0:00:30] f6 is the strong threat.} Rh8 {[%emt 0:00:30]} 44. g7 {[%emt 0:00:30]} Rg8 45. f6 {[%emt 0:00:30] And now e6 would win.} Kf7 {[%emt 0:01:00] Against e6+} 46. Re1 {[%emt 0:00:30]} (46. f5 $142 Rxg7+ 47. fxg7 Kxg7 48. f6+ Kf7 49. Kf5 Ne3+ 50. Ke4) 46... Rc8 {[%emt 0:00:30]} 47. e6+ {[%emt 0:00:30]} Kg8 48. Rh1 {[%emt 0:00:30] Weighted Error Value: White=0.21 (precise) /Black=0.57} 1-0

[Event "ITT 1st Parada Jamundi 2022"]
[Site "Jamundi Valle"]
[Date "2022.12.11"]
[Round "9.4"]
[White "Mirzoev, Azer"]
[Black "Zuluaga Mancilla, Cesar"]
[Result "1-0"]
[ECO "D37"]
[WhiteElo "2462"]
[BlackElo "2230"]
[Annotator "TA"]
[PlyCount "128"]
[EventDate "2022.12.05"]
[EventType "swiss"]
[EventCountry "COL"]
[SourceTitle "playchess.com"]
[Source "ChessBase"]
[SourceQuality "1"]
[TimeControl "5400+30"]

{[%evp 9,128,14,14,14,16,13,12,16,34,29,34,10,29,7,29,34,44,27,41,35,39,27,20,25,22,28,24,28,22,17,29,19,19,16,12,17,11,15,19,11,29,23,40,25,86,38,62,47,56,56,46,10,16,15,11,7,13,4,9,0,0,0,0,0,0,-6,-6,-6,0,0,60,0,0,0,200,194,175,109,99,85,135,52,202,95,150,157,226,210,188,95,104,39,87,81,92,16,106,126,987,978,946,869,5257,5214,4802,4133,1690,1368,1375,1190,29979,29980,29980,29981,29993,29994,29994,29988,29988,29989,29995]} 1. d4 {[%emt 0:02:44]} Nf6 {[%emt 0:01:15]} 2. Nf3 {[%emt 0:00:14]} d5 {[%emt 0:02:27]} 3. c4 {[%emt 0:00:10]} e6 {[%emt 0:00:06]} 4. Nc3 {[%emt 0:00:48]} a6 {[%emt 0:00:58]} 5. c5 {[%emt 0:02:41]} b6 {[%emt 0:02:36]} 6. cxb6 {[%emt 0:00:09] D37: Queen's Gambit Declined: 5 Bf4.} cxb6 {[%emt 0:00:09]} 7. Bf4 {[%emt 0:00:11]} Bb7 {[%emt 0:02:23]} 8. e3 {[%emt 0:00:03] The position is equal.} Nbd7 {[%emt 0:00:40][%cal Bb8d7,Bd7f6,Bf6e4][%mdl 32]} 9. Bd3 {[%emt 0:00:30]} Be7 {[%emt 0:02:53]} 10. O-O {[%emt 0:00:07]} O-O {[%emt 0:00:54]} 11. a4 {[%emt 0:01:22]} Ne4 {[%emt 0:06:30] [#]} (11... Nh5 $5 {[%cal Rh5f4]}) 12. h3 $146 {[%emt 0:02:45]} ({Predecessor:} 12. Nd2 Ndf6 13. Ncxe4 dxe4 14. Be2 Rc8 15. Nc4 Nd5 16. Bg3 Bb4 17. Qb3 a5 18. Rac1 {0-1 (47) Abdyjapar,A (2382)-Ni,H (2671) Riadh 2017}) 12... Ndf6 {[%emt 0:07:11]} 13. Qe2 {[%emt 0:05:51]} Nd6 {[%emt 0:06:32]} 14. Rfc1 {[%emt 0:03:28]} Nfe4 {[%emt 0:03:07]} 15. Ne5 {[%emt 0:02:25]} f6 {[%emt 0:01:05]} 16. Nf3 {[%emt 0:00:07]} Qd7 {[%emt 0:00:56]} 17. Nd2 {[%emt 0:09:07]} Nxd2 {[%emt 0:01:25]} 18. Qxd2 {[%emt 0:00:05]} Rfc8 {[%emt 0:00:45]} 19. Qc2 {[%emt 0:00:31]} f5 {[%emt 0:01:54]} 20. Qb3 {[%emt 0:06:30]} Nc4 {[%emt 0:00:50]} 21. Rc2 {[%emt 0:02:01]} Rc6 {[%emt 0:06:42]} 22. Rac1 {[%emt 0:00:18]} Rac8 {[%emt 0:00:03]} 23. Qa2 {[%emt 0:00:42]} Bb4 {[%emt 0:01:58]} 24. Bg3 {[%emt 0:04:48]} h6 {[%emt 0:03:45]} 25. Ne2 {[%emt 0:03:54]} Bd2 {[%emt 0:11:08]} 26. Rd1 {[%emt 0:03:42] And now b3 would win.} (26. Rb1 $5 Bb4 $8 27. b3 $11) 26... Ba5 {[%emt 0:03:52]} (26... Bb4 $11 {remains equal.}) 27. Nf4 {[%emt 0:11:34]} (27. b3 $16 Nd6 28. Rxc6 Rxc6 29. Qa3) 27... g5 {[%emt 0:06:25]} 28. Nh5 {[%emt 0:08:26]} Qf7 {[%emt 0:01:33] Against Nf6+} 29. Be2 {[%emt 0:00:05] Threatens to win with b3.} Bb4 {[%emt 0:05:12]} 30. Bh2 {[%emt 0:11:31]} a5 {[%emt 0:00:34]} 31. Rdc1 {[%emt 0:09:59]} Bd6 {[%emt 0:11:05]} 32. b3 {[%emt 0:05:34]} Bxh2+ {[%emt 0:00:05]} 33. Kxh2 {[%emt 0:00:04]} Nd6 {[%emt 0:00:16]} 34. Rxc6 {[%emt 0:00:02]} Rxc6 {[%emt 0:00:21]} 35. Rxc6 {[%emt 0:00:04]} Bxc6 {[%emt 0:00:25]} 36. Qc2 {[%emt 0:00:07]} Be8 {[%emt 0:01:20]} 37. f4 {[%emt 0:01:08]} Qe7 {[%emt 0:00:18]} 38. Ng3 {[%emt 0:00:49]} gxf4 {[%emt 0:00:39]} 39. exf4 {[%emt 0:00:07]} Qh4 {[%emt 0:00:14]} ({Better is} 39... Qb7 $11) 40. Qc1 {[%emt 0:00:08]} (40. Qc7 $1 $14 Qxf4 41. Qd8) 40... Kf8 $11 {[%emt 0:01:00]} 41. Bf3 {[%emt 0:00:19]} Ke7 $2 {[%emt 0:01:57]} (41... Qd8 $11 {and Black is okay.}) 42. Qc7+ $18 {[%emt 0:00:59]} Bd7 {[%emt 0:00:04]} 43. Ne2 {[%emt 0:00:13]} (43. Qxb6 Qxf4 44. Qxa5 Qxd4 $11) ({White should play} 43. Nh5 $1 $18 Ne8 44. Qe5 (44. Qxb6 Qe1 $16)) 43... Qe1 $16 {[%emt 0:03:53]} 44. Qxb6 {[%emt 0:01:29]} Ne4 {[%emt 0:00:03]} (44... h5 $142) 45. Bxe4 $1 {[%emt 0:00:25]} (45. Qc7 $6 Nd2 46. Qc5+ (46. Qxa5 $2 Nxf3+ 47. gxf3 Qxa5 $19) 46... Kd8 $11) 45... dxe4 {[%emt 0:00:40][%mdl 4096] Endgame [#] KQB-KQN} (45... Qxe2 $14 46. Qc5+ Ke8) 46. Qc5+ {[%emt 0:00:19]} (46. d5 $1 $18 {[%cal Rd5d6] and the rest is easy. Black must now prevent d6+.} exd5 (46... Qb4 47. Qc7) 47. Qc5+ (47. Ng3 Qc3 $14) 47... Ke8 48. Ng3 (48. Nd4 Qf2 $11)) 46... Ke8 {[%emt 0:00:18]} (46... Kd8 $142) 47. Ng3 $1 {[%emt 0:00:29]} e3 {[%emt 0:00:50]} (47... Kd8 $16 48. d5 Qb4) 48. Qe5 $18 {[%emt 0:00:44] d5 is the strong threat.} Kd8 {[%emt 0:00:22]} 49. d5 {[%emt 0:01:14]} ({White should try} 49. Qb8+ $1 $18 Ke7 50. Qc7) 49... exd5 $16 {[%emt 0:00:37]} 50. Qxd5 {[%emt 0:00:04]} (50. Qb8+ $1 $16 Ke7 51. Qb7) 50... Qd2 {[%emt 0:00:59] [#]} (50... Kc7 $1 $14 {was preferrable.}) 51. Qa8+ $1 {[%emt 0:00:39]} (51. Qe5 Bc6 52. Qf6+ (52. Qxf5 $2 Qxg2#) 52... Kc7 53. Qg7+ Kb6 $17) 51... Ke7 {[%emt 0:00:35]} 52. Qa6 {[%emt 0:01:22] Against e2} (52. Qh8 $16) 52... h5 {[%emt 0:00:30]} (52... Qd6 $11 {keeps the balance.} 53. Qxa5 Qxf4) 53. Nxh5 {[%emt 0:00:49] White threatens Qf6+ and mate.} Bc6 $2 {[%emt 0:00:55][%mdl 8192]} 54. Qxc6 $18 {[%emt 0:00:28]} e2 {[%emt 0:00:01]} 55. Qc7+ {[%emt 0:00:49]} (55. Qf6+ Kd7 56. Qf7+ (56. Qxf5+ Kd8 $11) 56... Kd8 57. Qf8+ (57. Qxf5 $2 e1=Q $19) 57... Kc7 58. Qg7+ (58. Qxf5 $2 e1=Q $19) (58. Qe7+ Kb6 $11) 58... Kc6 59. Qf6+ Kd7 60. Qxf5+ Kd8 61. Qf6+ (61. Qf8+ Kc7 $11) 61... Kd7 62. Qg7+ Kd6 63. Qe5+ Kc6 64. Qe6+ Kc7 65. Qf7+ Kc6 66. Qe8+ Kc7 67. Qe5+ Kc6 68. Qf6+ Kd7 69. Qg7+ Kd6 70. Qh6+ (70. Qe5+ Kc6 $11) 70... Kc7 71. Qh7+ Kb6 72. Qh6+ Kc7 73. Qg7+ Kd6 $11) 55... Ke6 {[%emt 0:00:53]} 56. Ng7+ {[%emt 0:00:21]} Kf6 {[%emt 0:00:07]} 57. Ne8+ {[%emt 0:02:07]} Ke6 {[%emt 0:00:10] [#]} 58. Qe5+ $1 {[%emt 0:00:47]} Kd7 {[%emt 0:00:16]} 59. Nf6+ {[%emt 0:00:10]} (59. Qxf5+ Kxe8 60. Qh5+ Ke7 61. Qg5+ (61. Qe5+ Kf7 $11) 61... Kf7 62. Qf5+ Kg7 63. Qg4+ (63. Qe5+ Kf7 $11) 63... Kf7 64. Qh5+ Kg7 65. Qg5+ (65. Qe5+ Kf7 $11) 65... Kf7 66. Qh5+ Kf6 67. Qe5+ Kf7 68. Qf5+ Kg7 69. Qg4+ (69. Qe5+ Kf7 $11) 69... Kf8 70. Qc8+ (70. Qf5+ Kg7 $11) 70... Kg7 71. Qg4+ $11) 59... Kc6 {[%emt 0:00:49]} 60. Qb5+ {[%emt 0:00:09] White mates.} Kc7 {[%emt 0:00:24]} 61. Nd5+ {[%emt 0:00:21]} ({Worse is} 61. Qxf5 e1=Q 62. Qc5+ Kd8 63. Qf8+ Kc7 64. Qc5+ Kb8 65. Qb5+ Ka7 66. Qc5+ Kb8 67. Qb5+ Kc8 68. Qc5+ Kd8 69. Qf8+ Kc7 70. Qc5+ $11) 61... Kd8 {[%emt 0:03:52]} 62. Qb8+ {[%emt 0:00:12]} Kd7 {[%emt 0:01:10]} 63. Qb7+ {[%emt 0:00:08]} Kd6 {[%emt 0:00:23]} 64. Qc7+ {[%emt 0:00:28]} Ke6 {[%emt 0:01:11] Weighted Error Value: White=0.15 (very precise) /Black=0.39} 1-0